[Event "Susha Chess Blitz Women 2022"]
[Site "Shusha"]
[Date "2022.09.24"]
[Round "10"]
[White "Beydullayeva, Govhar"]
[Black "Dzagnidze, Nana"]
[Result "0-1"]
[ECO "D38"]
[WhiteElo "2346"]
[BlackElo "2526"]
[Annotator "TA"]
[PlyCount "49"]
[EventDate "2022.09.24"]
[EventType "tourn"]
[EventCountry "AZE"]
[SourceTitle "playchess.com"]
[Source "ChessBase"]
[SourceQuality "1"]
[TimeControl "180+2"]

{[%evp 12,49,39,27,38,26,29,45,48,50,49,9,13,4,12,16,17,12,11,12,8,8,37,35,26,16,27,5,9,0,-15,-7,38,32,33,6,6,0,0,0]} 1. d4 {[%emt 0:00:01]} Nf6 {[%emt 0:00:02]} 2. c4 {[%emt 0:00:01]} e6 {[%emt 0:00:01]} 3. Nf3 {[%emt 0:00:01]} d5 {[%emt 0:00:02]} 4. Nc3 {[%emt 0:00:01]} Bb4 {[%emt 0:00:01]} 5. Bg5 {[%emt 0:00:04]} O-O {[%emt 0:00:11]} 6. e3 {[%emt 0:00:08]} c5 {[%emt 0:00:11]} 7. cxd5 {[%emt 0:00:21]} exd5 {[%emt 0:00:03] D38: Queen's Gambit Declined: Ragozin Defence (4 Nf3 Bb4).} 8. dxc5 {[%emt 0:00:01]} Bxc3+ {[%emt 0:00:24] has lost popularity (8...Nbd7).} 9. bxc3 {[%emt 0:00:01]} Nbd7 {[%emt 0:00:01] White is slightly better.} 10. Qd4 {[%emt 0:00:06]} Qa5 {[%emt 0:00:02] Inhibits Bb5.} 11. Bd3 {[%emt 0:00:12] Inhibits Ne4.} Ne4 {[%emt 0:00:17]} 12. O-O {[%emt 0:00:54]} Ndxc5 {[%emt 0:00:25] [#] Hoping for ...Ne6. Pair of Knights!} 13. Be7 {[%emt 0:01:12]} ({Much weaker is} 13. Qxd5 Nxc3 14. Qd4 Nxd3 15. Qxd3 Bf5 $15) 13... Re8 {[%emt 0:00:02]} 14. Bxc5 {[%emt 0:00:05]} Nxc5 {[%emt 0:01:04] [#]} 15. Rfd1 $146 {[%emt 0:00:14]} ({Predecessor:} 15. Qxd5 Be6 16. Bxh7+ Kxh7 17. Qh5+ Kg8 18. Ng5 Rad8 19. Rad1 Rxd1 20. Rxd1 Qxc3 21. Qh7+ {½-½ (44) Esipenko,A-Zakaryan,D (2014) Azov 2011}) 15... Nxd3 {[%emt 0:00:09]} 16. Qxd3 {[%emt 0:00:02]} h6 {[%emt 0:00:25]} 17. Qxd5 {[%emt 0:00:03]} Qxc3 {[%emt 0:00:03]} 18. Rac1 {[%emt 0:00:01]} Qb2 {[%emt 0:00:07]} 19. Rc7 {[%emt 0:00:04]} Be6 {[%emt 0:00:01]} 20. Qxb7 {[%emt 0:00:04]} Qxa2 21. Nd4 {[%emt 0:00:05]} Qa4 {[%emt 0:00:04][%cal Ra4d1] [#]} 22. Rdc1 {[%emt 0:00:02]} Qa2 {[%emt 0:00:06]} 23. h3 {[%emt 0:00:02]} (23. R7c2 $5 {[%cal Rc2a2]} Rab8 24. Rxa2 Rxb7 25. Ra5 $14) 23... a5 {[%emt 0:00:02]} 24. Nxe6 {[%emt 0:00:01]} Qxe6 {[%emt 0:00:01]} 25. R1c6 {[%mdl 32768] Weighted Error Value: White=0.08 (flawless) /Black=0.07 (flawless) . Loss on time!?} 0-1

[Event "Susha Chess Blitz Women 2022"]
[Site "Shusha"]
[Date "2022.09.24"]
[Round "11"]
[White "Efroimski, Marsel"]
[Black "Dzagnidze, Nana"]
[Result "1/2-1/2"]
[ECO "B50"]
[WhiteElo "2462"]
[BlackElo "2526"]
[Annotator "TA"]
[PlyCount "83"]
[EventDate "2022.09.24"]
[EventType "tourn"]
[EventCountry "AZE"]
[SourceTitle "playchess.com"]
[Source "ChessBase"]
[SourceQuality "1"]
[TimeControl "180+2"]

{[%evp 9,83,4,3,11,14,0,10,13,10,20,59,60,57,-8,-10,-16,0,0,54,59,57,56,53,50,52,-14,-19,-33,-28,-88,0,-106,0,-29,0,-21,-20,-20,-31,-25,0,-20,-20,-20,-20,-20,-20,-22,-22,-25,0,0,0,0,0,0,5,5,5,5,5,0,0,0,0,0,0,0,0,0,0,0,0,0,0,0]} 1. e4 {[%emt 0:00:00]} c5 {[%emt 0:00:01]} 2. Nf3 {[%emt 0:00:01]} d6 {[%emt 0:00:02]} 3. Nc3 {[%emt 0:00:02]} Nf6 {[%emt 0:00:04]} 4. e5 {[%emt 0:00:00]} dxe5 {[%emt 0:00:02]} 5. Nxe5 {[%emt 0:00:01]} a6 {[%emt 0:00:05]} 6. g3 {[%emt 0:00:00] B50: Sicilian: 2...d6, Miscellaneous.} Nbd7 {[%emt 0:00:10] Recently 6...Qd6 got a lot of attention.} 7. d4 {[%emt 0:00:16]} cxd4 {[%emt 0:00:23]} 8. Qxd4 {[%emt 0:00:02]} Nxe5 {[%emt 0:00:32]} 9. Qxe5 {[%emt 0:00:01]} g6 {[%emt 0:00:01]} 10. Bg2 {[%emt 0:00:51] [#] Threatens to win with Nd5.} Bg7 {[%emt 0:00:01]} 11. Nd5 {[%emt 0:00:14] [#]} (11. O-O $14) 11... O-O $146 {[%emt 0:00:21]} ({Predecessor:} 11... Nh5 12. Qc7 Bh3 13. Qxb7 Bxg2 14. Nc7+ Qxc7 15. Qxc7 Bxh1 16. Bg5 O-O 17. O-O-O Bf3 {0-1 (31) Zhidkikh,D (2081)-Chistiakova,T (2207) Moscow 2002}) 12. O-O {[%emt 0:00:54]} (12. Nxe7+ Kh8 13. Bg5 Ng4 $15) 12... Nxd5 {[%emt 0:00:45]} 13. Qxd5 {[%emt 0:00:01]} Be6 {[%emt 0:00:11]} ({Black should play} 13... Qxd5 $11 14. Bxd5 Rd8) 14. Qxb7 $14 {[%emt 0:00:06]} Rb8 {[%emt 0:00:02]} 15. Qxa6 {[%emt 0:00:02]} Bxb2 {[%emt 0:00:06]} 16. Bxb2 {[%emt 0:00:05]} Rxb2 {[%emt 0:00:01]} 17. c4 {[%emt 0:00:17]} (17. Qa7 $14) 17... Qd4 $11 {[%emt 0:00:03][%mdl 1024] Black has compensation.} 18. Rac1 {[%emt 0:00:04]} Rfb8 {[%emt 0:00:23]} 19. c5 {[%emt 0:00:03]} (19. a4 $11) 19... Rd2 {[%emt 0:00:03]} (19... Rxa2 $17 20. Qc6 Rbb2) 20. Qa3 {[%emt 0:00:31] [#]} (20. Qa5 $11 {remains equal.}) 20... Rbb2 {[%emt 0:00:13]} ({Better is} 20... Bc4 $1 $17 {[%cal Rc4f1]} 21. Qa4 (21. Qa7 $2 Rb4 $19) 21... Bxf1 22. Qxd4 Rxd4 23. Kxf1 Rc8) 21. Qf3 {[%emt 0:00:02]} Bg4 {[%emt 0:00:05]} (21... Bc4 $5 22. Rfd1 $8 Rbc2 $11) 22. Qf4 {[%emt 0:00:04]} Qxf4 {[%emt 0:00:05]} ({Don't do} 22... Rxa2 23. Qxd4 Rxd4 24. c6 $14) 23. gxf4 {[%emt 0:00:01]} Rxa2 {[%emt 0:00:01]} 24. c6 {[%emt 0:00:01]} Rac2 {[%emt 0:00:01][%cal Od2f2]} 25. Rxc2 {[%emt 0:00:03]} Rxc2 {[%emt 0:00:00][%mdl 4096] Endgame KRB-KRB} 26. Rb1 {[%emt 0:00:01]} Kg7 {[%emt 0:00:02]} 27. h3 {[%emt 0:00:01]} Bf5 {[%emt 0:00:03][%cal Oc2c6]} 28. Rb7 {[%emt 0:00:01]} Kf6 {[%emt 0:00:01]} 29. Rb6 {[%emt 0:00:07]} h5 {[%emt 0:00:04]} 30. c7+ {[%emt 0:00:02] The position is equal.} Kg7 {[%emt 0:00:01]} 31. Rc6 {[%emt 0:00:01]} ({Don't play} 31. Rb7 Bc8 32. Ra7 Kf6 $17) 31... Rxc6 {[%emt 0:00:02]} 32. Bxc6 {[%emt 0:00:01] KB-KB} Bc8 {[%emt 0:00:00] Inhibits Bb7.} 33. h4 {[%emt 0:00:05]} Kf6 {[%emt 0:00:03]} 34. Kg2 {[%emt 0:00:01]} Ke6 {[%emt 0:00:03]} 35. Kg3 {[%emt 0:00:02]} Kd6 {[%emt 0:00:03][%csl LRc6,LRc7]} 36. Be8 {[%emt 0:00:02]} Kxc7 {[%emt 0:00:02]} 37. Bxf7 {[%emt 0:00:01]} Bf5 {[%emt 0:00:00]} 38. Bc4 {[%emt 0:00:04]} Kd6 {[%emt 0:00:01]} 39. Bb5 {[%emt 0:00:02]} Kc5 {[%emt 0:00:01]} 40. Be8 {[%emt 0:00:01]} Kd4 {[%emt 0:00:01]} 41. Bf7 {[%emt 0:00:01]} Ke4 {[%emt 0:00:06]} 42. Be8 {[%emt 0:00:01] Weighted Error Value: White=0.19 (very precise) /Black=0.15 (very precise)} 1/2-1/2

[Event "Susha Chess Blitz Women 2022"]
[Site "Shusha"]
[Date "2022.09.24"]
[Round "11"]
[White "Fataliyeva, Ulviyya"]
[Black "Arabidze, Meri"]
[Result "0-1"]
[ECO "B44"]
[WhiteElo "2408"]
[BlackElo "2422"]
[Annotator "TA"]
[PlyCount "118"]
[EventDate "2022.09.24"]
[EventType "tourn"]
[EventCountry "AZE"]
[SourceTitle "playchess.com"]
[Source "ChessBase"]
[SourceQuality "1"]
[TimeControl "180+2"]

{[%evp 15,118,14,20,-12,0,-27,-27,-41,-35,-38,-37,-99,-97,-101,-84,-83,-74,-66,-37,-21,0,0,0,0,8,0,0,0,99,-59,0,-10,-10,-8,-8,-36,-14,-18,0,-26,-14,-28,-8,-59,-3,-13,0,-218,-218,-452,-452,-640,-633,-1016,-1123,-939,-825,-757,-654,-525,0,-302,-273,-237,-214,-212,-207,-136,-117,-259,-237,-204,-189,-527,-247,-29974,-29975,-29978,-29979,-29978,-29979,-29981,-29982,-29981,0,-29980,-29975,-29974,-29976,-29974,-29976,-29985,-29977,-29977,-29978,-29982,-29982,-29987,-29988,-29988,-29980,-29988,-29989,-29990,-29991]} 1. Nf3 {[%emt 0:00:01]} c5 {[%emt 0:00:00]} 2. e4 {[%emt 0:00:02]} e6 {[%emt 0:00:02]} 3. d4 {[%emt 0:00:02]} cxd4 {[%emt 0:00:01]} 4. Nxd4 {[%emt 0:00:01]} Nc6 {[%emt 0:00:00]} 5. Nxc6 {[%emt 0:00:05]} bxc6 {[%emt 0:00:01]} 6. Bd3 {[%emt 0:00:01]} d5 {[%emt 0:00:02]} 7. Nc3 {[%emt 0:00:06]} Nf6 {[%emt 0:00:01]} 8. O-O {[%emt 0:00:05]} Be7 {[%emt 0:00:01]} 9. a3 {[%emt 0:00:07] B40: Sicilian: 2...e6, Unusual lines.} O-O {[%emt 0:00:03] [#]} 10. Qe1 $146 {[%emt 0:00:13]} ({Predecessor:} 10. Bf4 Qb6 11. b4 Ba6 12. Qe2 Bxd3 13. cxd3 a5 14. exd5 cxd5 15. Rab1 axb4 16. axb4 {1-0 (49) Droin,A (2289)-Rakotomaharo,F (2422) Europe Echecs INT 2020}) 10... a5 {[%emt 0:00:12]} 11. Rb1 {[%emt 0:00:09] Black has an edge.} Ba6 {[%emt 0:00:04]} 12. Bxa6 {[%emt 0:00:14]} Rxa6 {[%emt 0:00:01]} 13. b4 {[%emt 0:00:02]} (13. Bf4 $15) 13... axb4 $17 {[%emt 0:00:04]} 14. axb4 Ra8 {[%emt 0:00:12]} 15. Bf4 {[%emt 0:00:18]} Ra3 {[%emt 0:00:10]} 16. exd5 {[%emt 0:00:21]} Nxd5 {[%emt 0:00:34]} 17. Nxd5 {[%emt 0:00:01]} exd5 {[%emt 0:00:11]} 18. b5 {[%emt 0:00:00]} cxb5 {[%emt 0:00:07]} 19. Rxb5 {[%emt 0:00:01]} Bf6 {[%emt 0:00:08]} 20. Qd2 {[%emt 0:00:03]} d4 {[%emt 0:00:06]} 21. Rd1 {[%emt 0:00:26]} Rc3 {[%emt 0:00:17] [#]} (21... Qd7 $11 {keeps the balance.} 22. Rc5 Re8) 22. Bd6 $2 {[%emt 0:00:50]} Re8 {[%emt 0:00:16]} (22... Qxd6 $2 23. Qxc3 Qxh2+ 24. Kxh2 $18) (22... Qd7 $1 $15 23. Rd5 Rfc8) 23. Rb8 {[%emt 0:00:09]} Qd7 {[%emt 0:00:05]} 24. Rxe8+ {[%emt 0:00:05]} (24. h3 {seems wilder.} h6 25. Rxe8+ Qxe8 26. Re1) 24... Qxe8 25. Bb4 {[%emt 0:00:01]} Rc8 {[%emt 0:00:07]} 26. Re1 {[%emt 0:00:15]} Qc6 {[%emt 0:00:04]} 27. Re2 {[%emt 0:00:01]} h6 {[%emt 0:00:01]} 28. h3 {[%emt 0:00:01]} Qa6 {[%emt 0:00:09]} 29. g4 {[%emt 0:00:08]} ({White should try} 29. Qd3 $11 Qa1+ 30. Kh2 (30. Re1 Qa4 $15)) 29... Bg5 {[%emt 0:00:04]} (29... Qb7 $15) 30. Qd1 {[%emt 0:00:02]} Bf6 {[%emt 0:00:10]} 31. Be7 $2 {[%emt 0:00:03]} (31. Qd2 $11 {and White is okay.}) 31... Re8 $19 {[%emt 0:00:08]} 32. Qe1 $2 {[%emt 0:00:01]} (32. Bxf6 Qxe2 33. Qxe2 Rxe2 34. Bxd4) 32... Qc4 {[%emt 0:00:24]} 33. Re4 {[%emt 0:00:10]} (33. Kg2 $142 Qc6+ 34. Kg1) 33... Qxc2 {[%emt 0:00:05]} 34. f4 {[%emt 0:00:03]} Rxe7 {[%emt 0:00:06]} 35. Rxe7 {[%emt 0:00:01]} Bxe7 {[%emt 0:00:01]} 36. Qxe7 {[%emt 0:00:00][%mdl 4096] Endgame KQ-KQ} Qc1+ {[%emt 0:00:05]} 37. Kg2 {[%emt 0:00:01]} Qc2+ $2 {[%emt 0:00:05]} (37... Qxf4 $19 38. Qd8+ Kh7) 38. Kg3 $2 {[%emt 0:00:02][%mdl 8192]} (38. Kg1 $1 $11 {and White has nothing to worry.}) 38... Qd3+ {[%emt 0:00:02]} 39. Kg2 {[%emt 0:00:03]} g6 {[%emt 0:00:02]} 40. Qe8+ {[%emt 0:00:01]} Kg7 {[%emt 0:00:02] Hoping for ...Qc2+.} 41. Qe5+ {[%emt 0:00:01]} Kh7 {[%emt 0:00:01] aiming for ...Qc2+.} 42. Qe7 {[%emt 0:00:03]} (42. Kh2 $17 {was the only defense.}) 42... Qc2+ {[%emt 0:00:04]} 43. Kf3 {[%emt 0:00:02]} Qc4 {[%emt 0:00:02]} 44. Qd7 $2 {[%emt 0:00:03]} (44. Kf2) 44... Kg7 {[%emt 0:00:02]} (44... Qd3+ $142 45. Kg2 Qe2+ 46. Kg1 Qe3+ 47. Kg2 Qxf4) 45. Qd6 $2 {[%emt 0:00:02]} (45. Qe7 $19) 45... Qd3+ {[%emt 0:00:01]} 46. Kf2 {[%emt 0:00:02]} Qe3+ {[%emt 0:00:01]} 47. Kg2 {[%emt 0:00:01]} d3 {[%emt 0:00:01][%cal Bd4d3,Bd3d2][%mdl 32]} 48. Qa3 {[%emt 0:00:04]} Qe2+ {[%emt 0:00:01]} 49. Kg3 {[%emt 0:00:01]} Qe3+ {[%emt 0:00:02]} 50. Kg2 {[%emt 0:00:01]} Qd4 {[%emt 0:00:02] Against Qc3. Black mates.} 51. Qc1 {[%emt 0:00:05]} d2 52. Qd1 Qe3 {[%emt 0:00:06]} 53. f5 {[%emt 0:00:02]} gxf5 {[%emt 0:00:02]} 54. gxf5 {[%emt 0:00:04]} Kf6 {[%emt 0:00:03]} 55. Qa1+ {[%emt 0:00:01]} Kxf5 {[%emt 0:00:02]} 56. Qa5+ {[%emt 0:00:01]} Kg6 {[%emt 0:00:03]} 57. Qa6+ {[%emt 0:00:01]} Kg7 {[%emt 0:00:02]} 58. Qf1 {[%emt 0:00:02]} Qe4+ {[%emt 0:00:03]} 59. Kg3 {[%emt 0:00:01]} Qe1+ {Weighted Error Value: White=0.57/Black=0.30} 0-1

[Event "Susha Chess Blitz Women 2022"]
[Site "Shusha"]
[Date "2022.09.24"]
[Round "11"]
[White "Zawadzka, Jolanta"]
[Black "Ozturk Orenli, Kubra"]
[Result "1-0"]
[ECO "C55"]
[WhiteElo "2401"]
[BlackElo "2319"]
[Annotator "TA"]
[PlyCount "59"]
[EventDate "2022.09.24"]
[EventType "tourn"]
[EventCountry "AZE"]
[SourceTitle "playchess.com"]
[Source "ChessBase"]
[SourceQuality "1"]
[TimeControl "180+2"]

{[%evp 27,59,13,67,58,66,19,18,0,41,16,7,8,16,16,65,52,58,35,79,75,79,57,76,46,281,272,272,267,2790,1054,29997,29998,29998,29999]} 1. e4 {[%emt 0:00:01]} e5 {[%emt 0:00:01]} 2. Nf3 {[%emt 0:00:01]} Nc6 {[%emt 0:00:00]} 3. d4 {[%emt 0:00:01]} exd4 {[%emt 0:00:01]} 4. Bc4 {[%emt 0:00:01]} Nf6 {[%emt 0:00:04]} 5. e5 {[%emt 0:00:01]} d5 {[%emt 0:00:01]} 6. Bb5 {[%emt 0:00:02]} Ne4 {[%emt 0:00:02]} 7. Nxd4 {[%emt 0:00:03]} Bd7 {[%emt 0:00:14]} 8. Bxc6 {[%emt 0:00:02]} bxc6 {[%emt 0:00:01]} 9. O-O {[%emt 0:00:04]} Bc5 {[%emt 0:00:20]} 10. f3 {[%emt 0:00:02]} Ng5 {[%emt 0:00:01]} 11. f4 {[%emt 0:00:01]} Ne4 {[%emt 0:00:03]} 12. Be3 {[%emt 0:00:01]} O-O {[%emt 0:00:13]} 13. Nd2 {[%emt 0:00:02]} Nxd2 {[%emt 0:00:35]} 14. Qxd2 {[%emt 0:00:01]} Qe7 {[%emt 0:00:14]} ({Better is} 14... Bb6 $11) 15. Nb3 $14 {[%emt 0:00:04] C56: Two Knights: 4 d4 exd4 5 0-0 Nxe4.} Bb6 {[%emt 0:00:06]} 16. Qc3 {[%emt 0:00:02]} (16. Rae1 $14 {deserves consideration.}) 16... f6 $11 {[%emt 0:00:34]} 17. Bc5 {[%emt 0:00:07] The position is equal.} Rae8 {[%emt 0:00:21][%cal Rf6e5]} 18. Kh1 {[%emt 0:00:37]} Bxc5 {[%emt 0:00:01]} 19. Nxc5 {[%emt 0:00:02]} fxe5 {[%emt 0:00:11]} 20. fxe5 {[%emt 0:00:02] [#]} Bg4 $146 {[%emt 0:00:09]} (20... Bf5 $11 {feels stronger.}) ({Predecessor:} 20... Bf5 21. Rae1 Qg5 22. e6 Rf6 23. Rf2 Rg6 24. Qe5 Be4 25. Qxg5 Rxg5 26. Nxe4 Re5 {½-½ (57) Perez Gonzalez,J (2277)-Gil Quilez,D (2208) Madrid 2018}) 21. h3 $36 {[%emt 0:00:15][%mdl 2048] White has the initiative.} Bf5 {[%emt 0:00:11]} 22. Rae1 {[%emt 0:00:08]} Qh4 {[%emt 0:00:03]} 23. e6 {[%emt 0:00:27] [#] Nd7 is the strong threat.} Bg6 {[%emt 0:00:13]} 24. Qe5 {[%emt 0:00:15] White is more active.} Rxf1+ {[%emt 0:00:06]} 25. Rxf1 {[%emt 0:00:01]} Rf8 $2 {[%emt 0:00:04] This move loses the game for Black.} (25... Qc4 $14 26. Nd3 Re7) 26. Rxf8+ $18 {[%emt 0:00:11]} Kxf8 {[%emt 0:00:00]} 27. Qxc7 {[%emt 0:00:07]} Qe1+ $2 {[%emt 0:00:04]} (27... Be8 28. Nd7+ (28. Qxa7 Qe1+ 29. Kh2 Qe5+ 30. Kh1 Qe1+ 31. Kh2 Qe5+ 32. Kh1 Qe1+ $11) 28... Kg8 29. Qxc6 Qf2) 28. Kh2 {[%emt 0:00:01] [#] Intending Qd8+ and mate.} Qe3 {[%emt 0:00:01]} 29. Qd8+ {[%emt 0:00:05]} Be8 {[%emt 0:00:02]} 30. Nd7+ {[%emt 0:00:01] Weighted Error Value: White=0.14 (very precise) /Black=0.79} 1-0

[Event "Susha Chess Blitz Women 2022"]
[Site "Shusha"]
[Date "2022.09.24"]
[Round "11"]
[White "Balajayeva, Khanim"]
[Black "Mammadova, Gulnar"]
[Result "1/2-1/2"]
[ECO "D02"]
[WhiteElo "2379"]
[BlackElo "2382"]
[Annotator "TA"]
[PlyCount "28"]
[EventDate "2022.09.24"]
[EventType "tourn"]
[EventCountry "AZE"]
[SourceTitle "playchess.com"]
[Source "ChessBase"]
[SourceQuality "1"]
[TimeControl "180+2"]

{[%evp 13,28,0,10,0,10,0,32,0,0,0,0,0,0,-10,0,0,0]} 1. d4 {[%emt 0:00:01]} d5 {[%emt 0:00:05]} 2. Nf3 {[%emt 0:00:01]} Nf6 {[%emt 0:00:03]} 3. Bf4 {[%emt 0:00:02]} Bf5 {[%emt 0:00:03]} 4. e3 {[%emt 0:00:03]} e6 {[%emt 0:00:04]} 5. Bd3 {[%emt 0:00:02]} Bxd3 {[%emt 0:00:05]} 6. Qxd3 {[%emt 0:00:03]} Bd6 {[%emt 0:00:05]} 7. Bxd6 {[%emt 0:00:01]} Qxd6 {[%emt 0:00:06]} 8. O-O {[%emt 0:00:02] D02: 1 d4 d5 2 Nf3 sidelines, including 2...Nf6 3 g3 and 2...Nf6 3 Bf4.} O-O {[%emt 0:00:06]} 9. Nbd2 {[%emt 0:00:01]} Nc6 {[%emt 0:00:28]} 10. c3 {[%emt 0:00:07] White is slightly better.} e5 {[%emt 0:00:03] The position is equal.} 11. dxe5 {[%emt 0:00:03]} Nxe5 {[%emt 0:00:04]} 12. Nxe5 {[%emt 0:00:01]} Qxe5 {[%emt 0:00:01] [#]} 13. Qd4 $146 {[%emt 0:00:01]} ({Predecessor:} 13. Nf3 Qd6 14. Rad1 Rad8 15. Qc2 Qc5 16. Rd4 c6 17. Rfd1 Rde8 18. Nd2 Re5 19. b4 {1-0 (35) Teixidor Banus,J (1872)-Alcantarilla Lopez,D (1827) Blanes 2015}) 13... Qxd4 {[%emt 0:00:05]} 14. exd4 {[%emt 0:00:01]} Rfe8 {[%emt 0:00:03] A rather calm draw.  Weighted Error Value: White=0.09 (flawless) /Black=0.12 (very precise)} 1/2-1/2

[Event "Susha Chess Blitz Women 2022"]
[Site "Shusha"]
[Date "2022.09.24"]
[Round "11"]
[White "Beydullayeva, Govhar"]
[Black "Mammadzada, Gunay"]
[Result "1/2-1/2"]
[ECO "E11"]
[WhiteElo "2346"]
[BlackElo "2473"]
[Annotator "TA"]
[PlyCount "101"]
[EventDate "2022.09.24"]
[EventType "tourn"]
[EventCountry "AZE"]
[SourceTitle "playchess.com"]
[Source "ChessBase"]
[SourceQuality "1"]
[TimeControl "180+2"]

{[%evp 19,101,10,14,8,20,0,53,11,17,11,22,14,18,20,34,34,33,20,31,22,129,99,108,99,101,108,90,28,24,12,18,10,30,42,58,37,267,259,270,233,228,224,777,773,754,797,777,761,1682,526,733,400,422,350,343,318,330,241,232,75,184,0,93,38,41,-8,0,0,0,0,10,12,12,10,12,0,16,0,9,0,7,0,5,0]} 1. d4 {[%emt 0:00:01]} Nf6 {[%emt 0:00:05]} 2. c4 {[%emt 0:00:01]} e6 {[%emt 0:00:00]} 3. Nf3 {[%emt 0:00:01]} Bb4+ {[%emt 0:00:01]} 4. Nbd2 {[%emt 0:00:00]} b6 {[%emt 0:00:01]} 5. e3 {[%emt 0:00:04]} Bb7 {[%emt 0:00:03]} 6. a3 {[%emt 0:00:05]} Be7 {[%emt 0:00:03]} 7. Bd3 {[%emt 0:00:05]} d5 {[%emt 0:00:01]} 8. O-O {[%emt 0:00:09]} O-O {[%emt 0:00:01]} 9. cxd5 {[%emt 0:00:09]} exd5 {[%emt 0:00:01]} 10. b4 {[%emt 0:00:01]} Nbd7 {[%emt 0:00:12]} 11. Bb2 {[%emt 0:00:01] E14: Queen's Indian: Classical Variation (4 e3).} Bd6 {[%emt 0:00:07]} 12. Ne5 {[%emt 0:00:04]} c5 {[%emt 0:00:14]} ({Black should play} 12... Qe7 $11) 13. bxc5 {[%emt 0:00:14] White is slightly better.} (13. Nxd7 {feels hotter.} Nxd7 14. dxc5 bxc5 15. Bf5) 13... bxc5 {[%emt 0:00:01]} 14. Nxd7 {[%emt 0:00:03]} Nxd7 {[%emt 0:00:09]} (14... Qxd7 $2 15. dxc5 Be7 16. Qc2 $18) 15. dxc5 {[%emt 0:00:10]} (15. Qh5 Nf6 16. Qh4 c4 $15) 15... Nxc5 {[%emt 0:00:03] [#]} 16. Qg4 $146 {[%emt 0:00:11][%csl Gb2][%cal Rg4g7]} ({Predecessor:} 16. Bc2 Qg5 17. Nf3 Qh5 18. Qd4 Ne6 19. Qh4 Qxh4 20. Nxh4 Rfc8 21. Rfc1 g6 22. Nf3 {1-0 (29) Schlaap,R (2183)-Meyer,J (1860) Nordrheinwestfalen 2011}) 16... f6 {[%emt 0:00:15]} (16... g6 17. Be2) 17. Bf5 {[%emt 0:00:12]} Bc8 {[%emt 0:00:11]} 18. Nf3 {[%emt 0:00:17]} Qe7 {[%emt 0:01:03]} 19. Rad1 {[%emt 0:00:14][%cal Of5h7]} Ba6 {[%emt 0:00:11]} (19... Rb8 $11 {keeps the balance.}) 20. Rfe1 {[%emt 0:00:04]} Rad8 {[%emt 0:00:03]} 21. Nd4 {[%emt 0:00:10] aiming for Nc6. White is more active.} Qc7 {[%emt 0:00:33] Prevents Nc6.} 22. Qh3 {[%emt 0:00:02]} g6 {[%emt 0:00:01] [#]} 23. Be6+ {[%emt 0:00:02]} (23. Ne6 $1 $16 {[%cal Re6c7]} Nxe6 24. Bxe6+ Kg7 25. Bxd5 (25. Rxd5 Bc4 $14)) 23... Kh8 $11 {[%emt 0:00:12]} 24. Rc1 Qb7 25. Ba1 {[%emt 0:00:58]} Nd3 {[%emt 0:00:02]} (25... Bc4 $5) 26. Rb1 {[%emt 0:00:01]} Qc7 {[%emt 0:00:05]} 27. Red1 {[%emt 0:00:17]} Bxa3 $2 {[%emt 0:00:07] [#]} (27... Bc4 $14) 28. Bg4 $1 $18 {[%emt 0:00:04] Hoping for Ne6.} (28. Rb3 Be7 $11) 28... Rde8 {[%emt 0:00:09]} 29. Ne6 {[%emt 0:00:02]} Qc2 {[%emt 0:00:00]} 30. Qf3 {[%emt 0:00:06] Really sharp!} (30. Nxf8 $6 Qxf2+ 31. Kh1 Bxf8) 30... Bb2 $2 {[%emt 0:00:04]} (30... Ne5 31. Bxe5 fxe5 32. Nxf8 Rxf8) 31. Nxf8 {[%emt 0:00:07]} Rxf8 {[%emt 0:00:00]} 32. Bxb2 {[%emt 0:00:02]} Nxb2 {[%emt 0:00:01]} 33. Rdc1 {[%emt 0:00:02]} Qd2 {[%emt 0:00:02]} 34. h4 {[%emt 0:00:04]} (34. Rc7 $142 {Intending Qh3 and mate.} Qd3 35. Ra1) 34... f5 {[%emt 0:00:01]} 35. Bh3 {[%emt 0:00:01]} Nd3 {[%emt 0:00:05]} 36. Rd1 {[%emt 0:00:02]} Qc2 {[%emt 0:00:00]} 37. h5 {[%emt 0:00:04]} Kg7 {[%emt 0:00:04]} 38. h6+ {[%emt 0:00:02]} (38. Qxd5 Qxf2+ 39. Kh2 (39. Kh1 Qxe3 40. Rb3 Nf2+ 41. Kh2 Qf4+ 42. g3 Qc4 $16) 39... Qxe3 $14) 38... Kxh6 {[%emt 0:00:02]} 39. Rf1 $2 {[%emt 0:00:04]} (39. Ra1 $18 {is more deadly.} Bb7 40. g4 (40. Rxa7 Rf7 $16)) 39... Kg7 {[%emt 0:00:02]} (39... Qc4 $16) 40. Rfd1 $2 {[%emt 0:00:01]} (40. Qxd5 $18 {Black must now prevent Qd4+.} Rf7 41. Qa5) 40... Rf7 {[%emt 0:00:03]} (40... Kh6 $1 $11) 41. Ra1 {[%emt 0:00:01]} ({White should try} 41. g3 $16) 41... Bc4 {[%emt 0:00:01]} 42. Qg3 {[%emt 0:00:05]} (42. g3 $14 {might be stronger.}) 42... f4 {[%emt 0:00:03] The position is equal.} 43. exf4 Nxf4 {Strongly threatening ...Ne2+.} 44. Qe3 {[%emt 0:00:04]} Nxh3+ {[%emt 0:00:03]} 45. gxh3 {[%emt 0:00:01]} a6 {[%emt 0:00:03]} 46. Qd4+ {[%emt 0:00:01][%mdl 1024] White has compensation.} Kh6 $1 {[%emt 0:00:02]} (46... Kg8 47. Re1 Bb5 48. Re5 $16 (48. Qxd5 $2 Qxf2+ 49. Kh1 Be2 $19)) 47. Qe3+ {[%emt 0:00:02]} Kg7 {[%emt 0:00:01]} 48. Qd4+ {[%emt 0:00:00]} Kh6 $1 {[%emt 0:00:01]} (48... Kg8 49. Re1 Bb5 50. Re5 $16 (50. Qxd5 $2 Qxf2+ 51. Kh1 Be2 $19)) 49. Qh4+ {[%emt 0:00:03]} Kg7 {[%emt 0:00:01]} 50. Qd4+ {[%emt 0:00:01]} Kh6 $1 {[%emt 0:00:01]} ({Don't do} 50... Kg8 51. Re1 Bb5 52. Re5 $16 (52. Qxd5 $2 Qxf2+ 53. Kh1 Be2 $19)) 51. Qd2+ {[%emt 0:00:01] Black defended with fortune.  Weighted Error Value: White=0.42/Black=0.26 (precise)} 1/2-1/2